fUSD/lending_fUSD_20240220
["ID","MTS","AMOUNT","RATE_DAILY","PERIOD"]
[314585739,1708434698346,-180.48,0.00038356,2]
[314585740,1708434698356,-500.0,0.00038356,2]
[314585741,1708434698366,-500.0,0.00038356,2]
[314585742,1708434698377,-500.0,0.00038356,2]
[314585743,1708434698386,-5294.69,0.00038356,2]
[314585744,1708434698396,-1308.05,0.00038356,2]
[314585745,1708434698406,-1339.34,0.00038356,2]
[314585746,1708434698416,-500.0,0.00038356,2]
[314585747,1708434698426,-921.2,0.00038356,2]
[314585748,1708434698436,-500.0,0.00038356,2]
[314585749,1708434698447,-500.0,0.00038356,2]
[314585750,1708434698457,-211.93,0.00038356,2]
[314585751,1708434698468,-500.0,0.00038356,2]
[314585752,1708434698480,-500.0,0.00038356,2]
[314585753,1708434698490,-808.94,0.00038356,2]
[314585754,1708434698499,-500.0,0.00038356,2]
[314585755,1708434698509,-1782.46,0.00038356,2]
[314585756,1708434698519,-500.0,0.00038356,2]
[314585757,1708434698529,-832.43,0.00038356,2]
[314585758,1708434698538,-500.0,0.00038356,2]
[314585759,1708434698547,-500.0,0.00038356,2]
[314585760,1708434698557,-4708.33,0.00038356,2]
[314585761,1708434698567,-500.0,0.00038356,2]
[314585762,1708434698577,-181.44,0.00038356,2]
[314585763,1708434698587,-844.64,0.00038356,2]
[314585764,1708434698597,-500.0,0.00038356,2]
[314585765,1708434698606,-500.0,0.00038356,2]
[314585766,1708434698615,-500.0,0.00038356,2]
[314585767,1708434698625,-500.0,0.00038356,2]
[314585768,1708434698634,-500.0,0.00038356,2]
[314585769,1708434698644,-500.0,0.00038356,2]
[314585770,1708434698653,-500.0,0.00038356,2]
[314585771,1708434698663,-453.44,0.00038356,2]
[314585772,1708434698672,-516.23,0.00038356,2]
[314585773,1708434698682,-570.14,0.00038356,2]
[314585774,1708434698691,-500.0,0.00038356,2]
[314585775,1708434698701,-725.87,0.00038356,2]
[314585776,1708434698710,-500.0,0.00038356,2]
[314585777,1708434698719,-500.0,0.00038356,2]
[314585778,1708434698729,-500.0,0.00038356,2]
[314585779,1708434698738,-882.96,0.00038356,2]
[314585780,1708434698747,-500.0,0.00038356,2]
[314585781,1708434698757,-580.24,0.00038356,2]
[314585782,1708434698767,-500.0,0.00038356,2]
[314585783,1708434698776,-500.0,0.00038356,2]
[314585784,1708434698785,-2098.72,0.00038356,2]
[314585785,1708434698795,-500.0,0.00038356,2]
[314585786,1708434698804,-500.0,0.00038356,2]
[314585787,1708434698814,-500.0,0.00038356,2]
[314585788,1708434698823,-500.0,0.00038356,2]
[314585789,1708434698832,-349.22,0.00038356,2]
[314585790,1708434698842,-1110.32,0.00038356,2]
[314585791,1708434698851,-593.91,0.00038356,2]
[314585792,1708434698860,-796.99,0.00038356,2]
[314585793,1708434698869,-500.0,0.00038356,2]
[314585794,1708434698878,-500.0,0.00038356,2]
[314585795,1708434698887,-500.0,0.00038356,2]
[314585796,1708434698896,-737.54,0.00038356,2]
[314585797,1708434698905,-1934.46,0.00038356,2]
[314585798,1708434698914,-439.25,0.00038356,2]
[314585799,1708434698923,-500.0,0.00038356,2]
[314585800,1708434698933,-500.0,0.00038356,2]
[314585801,1708434698943,-413.86,0.00038356,2]
[314585802,1708434698952,-500.0,0.00038356,2]
[314585803,1708434698961,-500.0,0.00038356,2]
[314585804,1708434698971,-1163.52,0.00038356,2]
[314585805,1708434698980,-500.0,0.00038356,2]
[314585806,1708434698989,-681.01,0.00038356,2]
[314585807,1708434698999,-500.0,0.00038356,2]
[314585808,1708434699008,-500.0,0.00038356,2]
[314585809,1708434699018,-151.0,0.00038356,14]
[314585810,1708434699029,-151.0,0.00038356,14]
[314585811,1708434699039,-151.0,0.00038356,14]
[314585812,1708434699048,-151.0,0.00038356,14]
[314585813,1708434699057,-151.0,0.00038356,14]
[314585814,1708434699067,-151.0,0.00038356,14]
[314585815,1708434699076,-151.0,0.00038356,14]
[314585816,1708434699085,-151.0,0.00038356,14]
[314585817,1708434699095,-151.0,0.00038356,14]
[314585818,1708434699104,-151.0,0.00038356,14]
[314585819,1708434699113,-151.0,0.00038356,14]
[314585820,1708434699122,-151.0,0.00038356,14]
[314585821,1708434699131,-151.0,0.00038356,14]
[314585822,1708434699140,-151.0,0.00038356,14]
[314585823,1708434699149,-287.214896,0.00038356,14]
[314585824,1708434699159,-207.277111,0.00038356,14]
[314585825,1708434699168,-151.0,0.00038356,14]
[314585826,1708434699176,-242.874879,0.00038356,14]
[314585827,1708434699185,-151.0,0.00038356,7]
[314585828,1708434699195,-151.0,0.00038356,14]
[314585829,1708434699205,-151.0,0.00038356,14]
[314585830,1708434699214,-151.0,0.00038356,14]
[314585831,1708434699222,-151.0,0.00038356,14]
[314585832,1708434699231,-151.0,0.00038356,14]
[314585833,1708434699240,-264.975439,0.00038356,14]
[314585834,1708434699250,-151.0,0.00038356,14]
[314585835,1708434699259,-151.0,0.00038356,14]
[314585836,1708434699268,-151.0,0.00038356,14]
[314585837,1708434699277,-151.0,0.00038356,14]
[314585838,1708434699286,-151.0,0.00038356,14]
[314585839,1708434699295,-243.954775,0.00038356,14]
[314585840,1708434699304,-185.222729,0.00038356,14]
[314585841,1708434699314,-344.032256,0.00038356,14]
[314585842,1708434699347,-344.032256,0.00038356,14]
[314585843,1708434699357,-344.032256,0.00038356,14]
[314585844,1708434699367,-344.032256,0.00038356,14]
[314585845,1708434699376,-344.032256,0.00038356,14]
[314585846,1708434699386,-344.032256,0.00038356,14]
[314585847,1708434699395,-344.032256,0.00038356,14]
[314585848,1708434699404,-344.032256,0.00038356,14]
[314585849,1708434699414,-344.032256,0.00038356,14]
[314585850,1708434699423,-344.032256,0.00038356,14]
[314585851,1708434699432,-344.032256,0.00038356,14]
[314585852,1708434699442,-344.032256,0.00038356,14]
[314585853,1708434699451,-344.032256,0.00038356,14]
[314585854,1708434699460,-344.032256,0.00038356,14]
[314585855,1708434699470,-344.032256,0.00038356,14]
[314585856,1708434699482,-344.032256,0.00038356,14]
[314585857,1708434699491,-151.0,0.00038356,14]
[314585858,1708434699501,-151.0,0.00038356,14]
[314585859,1708434699511,-151.0,0.00038356,14]
[314585860,1708434699520,-151.0,0.00038356,14]
[314585861,1708434699530,-151.0,0.00038356,14]
[314585862,1708434699539,-151.0,0.00038356,14]
[314585863,1708434699549,-151.0,0.00038356,14]
[314585864,1708434699559,-151.0,0.00038356,14]
[314585865,1708434699569,-151.0,0.00038356,14]
[314585866,1708434699579,-151.0,0.00038356,14]
[314585867,1708434699589,-151.0,0.00038356,14]
[314585868,1708434699598,-151.0,0.00038356,14]
[314585869,1708434699607,-151.0,0.00038356,14]
[314585870,1708434699616,-234.473523,0.00038356,14]
[314585871,1708434699626,-176.734398,0.00038356,14]
[314585872,1708434699634,-176.734398,0.00038356,14]
[314585873,1708434699644,-176.734398,0.00038356,14]
[314585874,1708434699653,-176.734398,0.00038356,14]
[314585875,1708434699663,-176.734398,0.00038356,14]
[314585876,1708434699672,-176.734398,0.00038356,14]
[314585877,1708434699682,-176.734398,0.00038356,14]
[314585878,1708434699693,-176.734398,0.00038356,14]
[314585879,1708434699704,-176.734398,0.00038356,14]
[314585880,1708434699713,-176.734398,0.00038356,14]
[314585881,1708434699722,-176.734398,0.00038356,14]
[314585882,1708434699732,-176.734398,0.00038356,14]
[314585883,1708434699741,-176.734398,0.00038356,14]
[314585884,1708434699751,-176.734398,0.00038356,14]
[314585885,1708434699760,-176.734398,0.00038356,14]
[314585886,1708434699769,-176.734398,0.00038356,14]
[314585887,1708434699778,-176.734398,0.00038356,14]
[314585888,1708434699788,-176.734398,0.00038356,14]
[314585889,1708434699797,-223.208112,0.00038356,14]
[314585890,1708434699807,-152.29,0.00038356,2]
[314585891,1708434699816,-151.0,0.00038356,14]
[314585892,1708434699826,-220.367949,0.00038356,14]
[314585893,1708434699835,-151.0,0.00038356,14]
[314585894,1708434699844,-220.367949,0.00038356,14]
[314585895,1708434699853,-151.0,0.00038356,14]
[314585896,1708434699862,-220.367949,0.00038356,14]
[314585897,1708434699871,-220.367949,0.00038356,14]
[314585898,1708434699880,-220.367949,0.00038356,14]
[314585899,1708434699889,-220.367949,0.00038356,14]
[314585900,1708434699898,-220.367949,0.00038356,14]
[314585901,1708434699907,-220.367949,0.00038356,14]
[314585902,1708434699917,-220.367949,0.00038356,14]
[314585903,1708434699926,-220.367949,0.00038356,14]
[314585904,1708434699936,-220.367949,0.00038356,14]
[314585905,1708434699946,-220.367949,0.00038356,14]
[314585906,1708434699956,-220.367949,0.00038356,14]
[314585907,1708434699965,-213.523244,0.00038356,14]
[314585908,1708434699974,-220.367949,0.00038356,14]
[314585909,1708434699983,-220.367949,0.00038356,14]
[314585910,1708434699993,-220.367949,0.00038356,14]
[314585911,1708434700002,-151.0,0.00038356,14]
[314585912,1708434700011,-151.0,0.00038356,14]
[314585913,1708434700020,-151.0,0.00038356,14]
[314585914,1708434700030,-151.0,0.00038356,14]
[314585915,1708434700040,-151.0,0.00038356,14]
[314585916,1708434700049,-151.0,0.00038356,14]
[314585917,1708434700058,-151.0,0.00038356,14]
[314585918,1708434700068,-151.0,0.00038356,14]
[314585919,1708434700077,-151.0,0.00038356,14]
[314585920,1708434700087,-151.0,0.00038356,14]
[314585921,1708434700096,-151.0,0.00038356,14]
[314585922,1708434700107,-162.640532,0.00038356,14]
[314585923,1708434700116,-151.0,0.00038356,14]
[314585924,1708434700125,-151.0,0.00038356,14]
[314585925,1708434700135,-163.156409,0.00038356,14]
[314585926,1708434700144,-151.0,0.00038356,14]
[314585927,1708434700153,-151.0,0.00038356,14]
[314585928,1708434700162,-151.0,0.00038356,14]
[314585929,1708434700172,-151.0,0.00038356,14]
[314585930,1708434700181,-252.528691,0.00038356,14]
[314585931,1708434700191,-151.0,0.00038356,14]
[314585932,1708434700200,-151.0,0.00038356,14]
[314585933,1708434700209,-151.0,0.00038356,14]
[314585934,1708434700218,-151.0,0.00038356,14]
[314585935,1708434700228,-151.0,0.00038356,14]
[314585936,1708434700237,-1174.200997,0.00038356,14]
[314585937,1708434700246,-151.0,0.00038356,14]
[314585938,1708434700255,-1174.200997,0.00038356,14]
[314585939,1708434700264,-151.0,0.00038356,14]
[314585940,1708434700274,-1174.200997,0.00038356,14]
[314585941,1708434700283,-151.0,0.00038356,14]
[314585942,1708434700292,-1174.200997,0.00038356,14]
[314585943,1708434700302,-151.0,0.00038356,14]
[314585944,1708434700311,-1174.200997,0.00038356,14]
[314585945,1708434700321,-4000.0,0.000384,2]
[314585946,1708434700330,-155.0,0.0003861,2]
[314585947,1708434700340,-500.0,0.0003863,6]
[314585948,1708434700349,-500.0,0.0003863,2]
[314585949,1708434700358,-500.0,0.0003863,2]
[314585950,1708434700367,-500.0,0.0003863,6]
[314585951,1708434700377,-500.0,0.0003863,6]
[314585952,1708434700386,-500.0,0.0003863,6]
[314585953,1708434700395,-817.94,0.0003863,6]
[314585954,1708434700404,-594.24,0.0003863,6]
[314585955,1708434700414,-5587.51,0.0003863,6]
[314585956,1708434700423,-500.0,0.0003863,6]
[314585957,1708434700433,-543.6,0.0003863,6]
[314585958,1708434700442,-500.0,0.0003863,6]
[314585959,1708434700452,-913.06,0.0003863,6]
[314585960,1708434700462,-500.0,0.0003863,6]
[314585961,1708434700473,-500.0,0.0003863,6]
[314585962,1708434700485,-500.0,0.0003863,6]
[314585963,1708434700494,-993.85,0.0003863,6]
[314585964,1708434700507,-500.0,0.0003863,6]
[314585965,1708434700517,-500.0,0.0003863,6]
[314585966,1708434700687,-500.0,0.0003863,6]
[314585967,1708434700698,-500.0,0.0003863,6]
[314585968,1708434700708,-500.0,0.0003863,6]
[314585969,1708434700717,-500.0,0.0003863,6]
[314585970,1708434700726,-500.0,0.0003863,6]
[314585971,1708434700736,-500.0,0.0003863,6]
[314585972,1708434700746,-500.0,0.0003863,6]
[314585973,1708434700755,-163.8,0.0003863,6]
[314585974,1708434700764,-500.0,0.0003863,6]
[314585975,1708434700773,-500.0,0.0003863,6]
[314585976,1708434700783,-500.0,0.0003863,6]
[314585977,1708434700792,-500.0,0.0003863,6]
[314585978,1708434700801,-519.3,0.0003863,6]
[314585979,1708434700811,-500.0,0.0003863,6]
[314585980,1708434700821,-500.0,0.0003863,6]
[314585981,1708434700830,-5294.69,0.0003863,6]
[314585982,1708434700839,-1308.05,0.0003863,6]
[314585983,1708434700849,-1339.34,0.0003863,6]
[314585984,1708434700858,-500.0,0.0003863,6]
[314585985,1708434700867,-921.2,0.0003863,6]
[314585986,1708434700876,-500.0,0.0003863,6]
[314585987,1708434700886,-500.0,0.0003863,6]
[314585988,1708434700895,-500.0,0.0003863,6]
[314585989,1708434700905,-500.0,0.0003863,6]
[314585990,1708434700914,-808.94,0.0003863,6]
[314585991,1708434700923,-281.87,0.0003863,6]
[314585992,1708434700932,-1782.46,0.0003863,6]
[314585993,1708434700942,-500.0,0.0003863,6]
[314585994,1708434700951,-832.43,0.0003863,6]
[314585995,1708434700960,-500.0,0.0003863,6]
[314585996,1708434700969,-500.0,0.0003863,6]
[314585997,1708434700978,-4708.33,0.0003863,6]
[314585998,1708434700987,-500.0,0.0003863,6]
[314585999,1708434700996,-844.64,0.0003863,6]
[314586000,1708434701006,-500.0,0.0003863,6]
[314586001,1708434701016,-500.0,0.0003863,6]
[314586002,1708434701025,-500.0,0.0003863,6]
[314586003,1708434701036,-626.08,0.0003863,6]
[314586004,1708434701046,-500.0,0.0003863,6]
[314586005,1708434701057,-500.0,0.0003863,6]
[314586006,1708434701066,-500.0,0.0003863,6]
[314586007,1708434701078,-516.23,0.0003863,6]
[314586008,1708434701088,-570.14,0.0003863,6]
[314586009,1708434701098,-555.37,0.0003863,6]
[314586010,1708434701107,-725.87,0.0003863,6]
[314586011,1708434701116,-500.0,0.0003863,6]
[314586012,1708434701126,-500.0,0.0003863,6]
[314586013,1708434701135,-500.0,0.0003863,6]
[314586014,1708434701144,-882.96,0.0003863,6]
[314586015,1708434701153,-500.0,0.0003863,6]
[314586016,1708434701162,-580.24,0.0003863,6]
[314586017,1708434701172,-500.0,0.0003863,6]
[314586018,1708434701182,-500.0,0.0003863,6]
[314586019,1708434701192,-2098.72,0.0003863,6]
[314586020,1708434701202,-500.0,0.0003863,6]
[314586021,1708434701212,-440.01,0.0003863,6]
[314586022,1708434701223,-500.0,0.0003863,6]
[314586023,1708434701233,-500.0,0.0003863,6]
[314586024,1708434701242,-1110.32,0.0003863,6]
[314586025,1708434701252,-593.91,0.0003863,6]
[314586026,1708434701261,-796.99,0.0003863,6]
[314586027,1708434701271,-500.0,0.0003863,6]
[314586028,1708434701280,-455.29,0.0003863,6]
[314586029,1708434701289,-500.0,0.0003863,6]
[314586030,1708434701299,-737.54,0.0003863,6]
[314586031,1708434701309,-1934.46,0.0003863,6]
[314586032,1708434701319,-471.18,0.0003863,6]
[314586033,1708434701328,-500.0,0.0003863,6]
[314586034,1708434701338,-500.0,0.0003863,6]
[314586035,1708434701348,-500.0,0.0003863,6]
[314586036,1708434701358,-1163.52,0.0003863,6]
[314586037,1708434701368,-500.0,0.0003863,6]
[314586038,1708434701378,-681.01,0.0003863,6]
[314586039,1708434701387,-500.0,0.0003863,6]
[314586040,1708434701397,-1898.04,0.000387,7]
[314586041,1708434701406,-1842.23,0.000387,7]
[314586042,1708434701415,-154.22,0.00038747,2]
[314586043,1708434701425,-650.30978605,0.00038759,9]
[314586044,1708434701434,-177.58,0.00038884,2]
[314586045,1708434701444,-305.70527842,0.000389,2]
[314586046,1708434701453,-305.70527842,0.000389,2]
[314586047,1708434701463,-305.70527842,0.000389,2]
[314586048,1708434701472,-305.70527842,0.000389,2]
[314586049,1708434701484,-305.70527842,0.000389,2]
[314586050,1708434701494,-305.70527842,0.000389,2]
[314586051,1708434701503,-305.70527842,0.000389,2]
[314586052,1708434701513,-305.70527842,0.000389,2]
[314586053,1708434701522,-305.70527842,0.000389,2]
[314586054,1708434701532,-305.70527842,0.000389,2]
[314586055,1708434701541,-305.70527842,0.000389,2]
[314586056,1708434701551,-305.70527842,0.000389,2]
[314586057,1708434701561,-305.70527842,0.000389,2]
[314586058,1708434701571,-500.0,0.00038904,6]
[314586059,1708434701581,-343.41,0.00038904,2]
[314586060,1708434701590,-500.0,0.00038904,6]
[314586061,1708434701599,-500.0,0.00038904,6]
[314586062,1708434701608,-500.0,0.00038904,6]
[314586063,1708434701618,-817.94,0.00038904,6]
[314586064,1708434701627,-594.24,0.00038904,6]
[314586065,1708434701637,-5587.51,0.00038904,6]
[314586066,1708434701647,-500.0,0.00038904,6]
[314586067,1708434701656,-543.6,0.00038904,6]
[314586068,1708434701665,-515.34,0.00038904,6]
[314586069,1708434701674,-913.06,0.00038904,6]
[314586070,1708434701684,-500.0,0.00038904,6]
[314586071,1708434701693,-500.0,0.00038904,6]
[314586072,1708434701703,-500.0,0.00038904,6]
[314586073,1708434701713,-993.85,0.00038904,6]
[314586074,1708434701723,-500.0,0.00038904,6]
[314586075,1708434701732,-612.7,0.00038904,6]
[314586076,1708434701741,-500.0,0.00038904,6]
[314586077,1708434701751,-500.0,0.00038904,6]
[314586078,1708434701760,-500.0,0.00038904,6]
[314586079,1708434701770,-500.0,0.00038904,6]
[314586080,1708434701780,-246.58,0.00038904,6]
[314586081,1708434701789,-500.0,0.00038904,6]
[314586082,1708434701799,-500.0,0.00038904,6]
[314586083,1708434701807,-500.0,0.00038904,6]
[314586084,1708434701817,-500.0,0.00038904,6]
[314586085,1708434701826,-500.0,0.00038904,6]
[314586086,1708434701835,-500.0,0.00038904,6]
[314586087,1708434701845,-500.0,0.00038904,6]
[314586088,1708434701854,-388.21,0.00038904,6]
[314586089,1708434701863,-5294.69,0.00038904,6]
[314586090,1708434701873,-1308.05,0.00038904,6]
[314586091,1708434701882,-1339.34,0.00038904,6]
[314586092,1708434701891,-500.0,0.00038904,6]
[314586093,1708434701900,-921.2,0.00038904,6]
[314586094,1708434701910,-500.0,0.00038904,6]
[314586095,1708434701919,-500.0,0.00038904,6]
[314586096,1708434701928,-500.0,0.00038904,6]
[314586097,1708434701937,-500.0,0.00038904,6]
[314586098,1708434701947,-808.94,0.00038904,6]
[314586099,1708434701956,-1782.46,0.00038904,6]
[314586100,1708434701966,-500.0,0.00038904,6]
[314586101,1708434701975,-832.43,0.00038904,6]
[314586102,1708434701984,-500.0,0.00038904,6]
[314586103,1708434701994,-500.0,0.00038904,6]
[314586104,1708434702003,-4708.33,0.00038904,6]
[314586105,1708434702012,-500.0,0.00038904,6]
[314586106,1708434702022,-844.64,0.00038904,6]
[314586107,1708434702033,-500.0,0.00038904,6]
[314586108,1708434702043,-500.0,0.00038904,6]
[314586109,1708434702052,-500.0,0.00038904,6]
[314586110,1708434702062,-639.83,0.00038904,6]
[314586111,1708434702072,-500.0,0.00038904,6]
[314586112,1708434702082,-500.0,0.00038904,6]
[314586113,1708434702091,-516.23,0.00038904,6]
[314586114,1708434702101,-570.14,0.00038904,6]
[314586115,1708434702110,-500.0,0.00038904,6]
[314586116,1708434702120,-725.87,0.00038904,6]
[314586117,1708434702129,-500.0,0.00038904,6]
[314586118,1708434702138,-548.82,0.00038904,6]
[314586119,1708434702148,-882.96,0.00038904,6]
[314586120,1708434702157,-500.0,0.00038904,6]
[314586121,1708434702166,-580.24,0.00038904,6]
[314586122,1708434702176,-500.0,0.00038904,6]
[314586123,1708434702186,-500.0,0.00038904,6]
[314586124,1708434702197,-2098.72,0.00038904,6]
[314586125,1708434702207,-500.0,0.00038904,6]
[314586126,1708434702217,-500.0,0.00038904,6]
[314586127,1708434702226,-500.0,0.00038904,6]
[314586128,1708434702236,-1110.32,0.00038904,6]
[314586129,1708434702245,-593.91,0.00038904,6]
[314586130,1708434702255,-796.99,0.00038904,6]
[314586131,1708434702265,-500.0,0.00038904,6]
[314586132,1708434702275,-500.0,0.00038904,6]
[314586133,1708434702284,-737.54,0.00038904,6]
[314586134,1708434702294,-1934.46,0.00038904,6]
[314586135,1708434702304,-500.0,0.00038904,6]
[314586136,1708434702314,-500.0,0.00038904,6]
[314586137,1708434702324,-500.0,0.00038904,6]
[314586138,1708434702333,-1163.52,0.00038904,6]
[314586139,1708434702343,-500.0,0.00038904,6]
[314586140,1708434702352,-681.01,0.00038904,6]
[314586141,1708434702362,-169.06,0.00038904,6]
[314586142,1708434702372,-1100.0,0.00039,3]
[314586143,1708434702381,-394.32,0.00039065,2]
[314586144,1708434702391,-174.39240563,0.00039078,2]
[314586145,1708434702401,-153.55220965,0.00039169,3]
[314586146,1708434702411,-28699.04812139,0.00039178,2]
[314586147,1708434702420,-720.52140753,0.00039178,2]
[314586148,1708434702430,-552.82900988,0.00039178,2]
[314586149,1708434702439,-500.0,0.00039178,6]
[314586150,1708434702451,-500.0,0.00039178,6]
[314586151,1708434702459,-396.29,0.00039178,6]
[314586152,1708434702470,-500.0,0.00039178,6]
[314586153,1708434702481,-151.0,0.00039178,14]
[314586154,1708434702491,-817.94,0.00039178,6]
[314586155,1708434702501,-594.24,0.00039178,6]
[314586156,1708434702510,-5587.51,0.00039178,6]
[314586157,1708434702520,-500.0,0.00039178,6]
[314586158,1708434702530,-543.6,0.00039178,6]
[314586159,1708434702538,-913.06,0.00039178,6]
[314586160,1708434702548,-344.032256,0.00039178,14]
[314586161,1708434702558,-344.032256,0.00039178,14]
[314586162,1708434702568,-500.0,0.00039178,6]
[314586163,1708434702577,-281.59,0.00039178,6]
[314586164,1708434702586,-500.0,0.00039178,6]
[314586165,1708434702595,-993.85,0.00039178,6]
[314586166,1708434702604,-500.0,0.00039178,6]
[314586167,1708434702613,-500.0,0.00039178,6]
[314586168,1708434702623,-476.73,0.00039178,6]
[314586169,1708434702632,-500.0,0.00039178,6]
[314586170,1708434702641,-500.0,0.00039178,6]
[314586171,1708434702651,-500.0,0.00039178,6]
[314586172,1708434702660,-500.0,0.00039178,6]
[314586173,1708434702670,-500.0,0.00039178,6]
[314586174,1708434702680,-500.0,0.00039178,6]
[314586175,1708434702690,-500.0,0.00039178,6]
[314586176,1708434702701,-500.0,0.00039178,6]
[314586177,1708434702710,-5294.69,0.00039178,6]
[314586178,1708434702720,-1339.34,0.00039178,6]
[314586179,1708434702729,-1308.05,0.00039178,6]
[314586180,1708434702738,-630.88,0.00039178,6]
[314586181,1708434702748,-921.2,0.00039178,6]
[314586182,1708434702757,-500.0,0.00039178,6]
[314586183,1708434702767,-500.0,0.00039178,6]
[314586184,1708434702776,-500.0,0.00039178,6]
[314586185,1708434702786,-500.0,0.00039178,6]
[314586186,1708434702795,-808.94,0.00039178,6]
[314586187,1708434702804,-1782.46,0.00039178,6]
[314586188,1708434702813,-832.43,0.00039178,6]
[314586189,1708434702823,-500.0,0.00039178,6]
[314586190,1708434702832,-387.83148953,0.00039178,6]
[314586191,1708434702841,-500.0,0.00039178,6]
[314586192,1708434702850,-4708.33,0.00039178,6]
[314586193,1708434702859,-500.0,0.00039178,6]
[314586194,1708434702869,-844.64,0.00039178,6]
[314586195,1708434702878,-500.0,0.00039178,6]
[314586196,1708434702887,-500.0,0.00039178,6]
[314586197,1708434702897,-500.0,0.00039178,6]
[314586198,1708434702906,-500.0,0.00039178,6]
[314586199,1708434702915,-500.0,0.00039178,6]
[314586200,1708434702925,-516.23,0.00039178,6]
[314586201,1708434702934,-570.14,0.00039178,6]
[314586202,1708434702943,-500.0,0.00039178,6]
[314586203,1708434702954,-725.87,0.00039178,6]
[314586204,1708434702964,-500.0,0.00039178,6]
[314586205,1708434702973,-882.96,0.00039178,6]
[314586206,1708434702982,-500.0,0.00039178,6]
[314586207,1708434702991,-580.24,0.00039178,6]
[314586208,1708434703001,-519.46,0.00039178,6]
[314586209,1708434703010,-500.0,0.00039178,6]
[314586210,1708434703020,-2098.72,0.00039178,6]
[314586211,1708434703030,-500.0,0.00039178,6]
[314586212,1708434703040,-500.0,0.00039178,6]
[314586213,1708434703050,-500.0,0.00039178,6]
[314586214,1708434703060,-1110.32,0.00039178,6]
[314586215,1708434703069,-593.91,0.00039178,6]
[314586216,1708434703078,-796.99,0.00039178,6]
[314586217,1708434703087,-500.0,0.00039178,6]
[314586218,1708434703097,-500.0,0.00039178,6]
[314586219,1708434703106,-737.54,0.00039178,6]
[314586220,1708434703115,-1934.46,0.00039178,6]
[314586221,1708434703125,-500.0,0.00039178,6]
[314586222,1708434703134,-500.0,0.00039178,6]
[314586223,1708434703143,-500.0,0.00039178,6]
[314586224,1708434703152,-1163.52,0.00039178,6]
[314586225,1708434703161,-500.0,0.00039178,6]
[314586226,1708434703171,-681.01,0.00039178,6]
[314586227,1708434703179,-675187.03331349,0.000393,2]
[314586228,1708434703188,-151.0,0.000393,14]
[314586229,1708434703199,-151.0,0.000393,14]
[314586230,1708434703207,-151.0,0.000393,14]
[314586231,1708434703216,-151.0,0.000393,14]
[314586232,1708434703225,-151.0,0.000393,14]
[314586233,1708434703235,-344.032256,0.000393,14]
[314586234,1708434703244,-344.032263,0.000393,14]
[314586235,1708434703254,-176.734398,0.000393,14]
[314586236,1708434703263,-176.73439,0.000393,14]
[314586237,1708434703272,-220.367949,0.000393,14]
[314586238,1708434703281,-220.367949,0.000393,14]